fUSD/lending_fUSD_20250820
["ID","MTS","AMOUNT","RATE_DAILY","PERIOD"]
[380351384,1755700239503,-400.0,0.00030958,120]
[380351390,1755700239546,-400.0,0.00030958,120]
[380351398,1755700239592,-1169.7,0.00030958,120]
[380351408,1755700239642,-4533.1,0.00030958,120]
[380351420,1755700239688,-914.88,0.00030958,120]
[380351431,1755700239737,-400.0,0.00030958,120]
[380351443,1755700239785,-1282.63,0.00030958,120]
[380351452,1755700239831,-400.0,0.00030958,120]
[380351463,1755700239879,-1249.36,0.00030958,120]
[380351472,1755700239927,-182.12,0.00030958,120]
[380351483,1755700239976,-2141.8,0.00030958,120]
[380351494,1755700240025,-400.0,0.00030958,120]
[380351505,1755700240070,-400.0,0.00030958,120]
[380351518,1755700240117,-400.0,0.00030958,120]
[380351533,1755700240161,-1366.18,0.00030958,120]
[380351541,1755700240206,-1045.46,0.00030958,120]
[380351544,1755700240250,-377.64,0.00030958,120]
[380351549,1755700240292,-1386.91,0.00030958,120]
[380351550,1755700240333,-400.0,0.00030958,120]
[380351551,1755700240374,-400.0,0.00030958,120]
[380351552,1755700240414,-4369.67,0.00030958,118]
[380351553,1755700240459,-887.06,0.00030958,120]
[380351554,1755700240498,-3084.34,0.00030958,120]
[380351555,1755700240538,-400.0,0.00030958,120]
[380351556,1755700240579,-3155.56,0.00030958,120]
[380351557,1755700240617,-400.66,0.00030958,120]
[380351558,1755700240656,-411.95,0.00030958,120]
[380351559,1755700240694,-400.0,0.00030958,120]
[380351560,1755700240733,-1366.0,0.00030958,120]
[380351561,1755700240772,-400.0,0.00030958,120]
[380351562,1755700240815,-400.0,0.00030958,120]
[380351563,1755700240855,-1989.14,0.00030958,120]
[380351564,1755700240898,-2031.89,0.00030958,120]
[380351565,1755700240947,-4840.69,0.00030958,120]
[380351566,1755700240993,-400.0,0.00030958,120]
[380351567,1755700241039,-1802.56,0.00030958,120]
[380351568,1755700241082,-400.0,0.00030958,120]
[380351569,1755700241128,-5946.94,0.00030958,120]
[380351570,1755700241172,-1561.46,0.00030958,120]
[380351571,1755700241216,-400.0,0.00030958,120]
[380351572,1755700241262,-400.0,0.00030958,120]
[380351573,1755700241308,-1674.47,0.00030958,120]
[380351574,1755700241354,-2996.41,0.00030958,120]
[380351575,1755700241395,-1105.06,0.00030958,120]
[380351576,1755700241434,-1254.33,0.00030958,120]
[380351577,1755700241474,-400.0,0.00030958,120]
[380351578,1755700241518,-743.26,0.00030958,120]
[380351579,1755700241557,-1106.69,0.00030958,120]
[380351580,1755700241596,-400.0,0.00030958,120]
[380351581,1755700241635,-1238.97,0.00030958,120]
[380351582,1755700241675,-3443.6,0.00030958,120]
[380351583,1755700241716,-1345.62,0.00030958,120]
[380351584,1755700241931,-400.0,0.00030958,120]
[380351585,1755700241975,-2005.04,0.00030958,120]
[380351586,1755700242026,-400.0,0.00030958,120]
[380351587,1755700242071,-1429.3,0.00030958,120]
[380351588,1755700242118,-1833.47,0.00030958,120]
[380351589,1755700242167,-1430.18,0.00030958,120]
[380351590,1755700242213,-400.0,0.00030958,120]
[380351591,1755700242261,-400.0,0.00030958,120]
[380351592,1755700242306,-400.0,0.00030958,120]
[380351593,1755700242353,-451.95,0.00030958,120]
[380351594,1755700242397,-400.0,0.00030958,120]
[380351595,1755700242442,-1965.19,0.00030958,120]
[380351596,1755700242484,-400.0,0.00030958,120]
[380351597,1755700242534,-400.0,0.00030958,120]
[380351605,1755700242574,-1775.23,0.00030958,120]
[380351609,1755700242615,-400.0,0.00030958,120]
[380351610,1755700242657,-2149.65,0.00030958,120]
[380351614,1755700242701,-1318.6,0.00030958,120]
[380351615,1755700242746,-400.0,0.00030958,120]
[380351616,1755700242789,-529.75,0.00030958,120]
[380351617,1755700242831,-1078.84,0.00030958,120]
[380351618,1755700242889,-1324.97,0.00030958,120]
[380351619,1755700242931,-400.0,0.00030958,120]
[380351620,1755700242973,-1907.19,0.00030958,120]
[380351621,1755700243020,-614.17,0.00030958,120]
[380351623,1755700243065,-1562.49,0.00030958,120]
[380351624,1755700243110,-400.0,0.00030958,120]
[380351625,1755700243157,-400.0,0.00030958,120]
[380351626,1755700243204,-425.08,0.00030958,120]
[380351627,1755700243253,-1544.03,0.00030958,120]
[380351628,1755700243303,-2066.97,0.00030958,120]
[380351629,1755700243352,-400.0,0.00030958,120]
[380351630,1755700243400,-400.0,0.00030958,120]
[380351631,1755700243449,-1722.47,0.00030958,120]
[380351632,1755700243497,-400.0,0.00030958,120]
[380351633,1755700243540,-2150.63,0.00030958,120]
[380351634,1755700243583,-1072.65,0.00030958,120]
[380351635,1755700243627,-400.0,0.00030958,120]
[380351636,1755700243668,-400.0,0.00030958,120]
[380351637,1755700243710,-1412.53,0.00030958,120]
[380351638,1755700243753,-1626.0,0.00030958,120]
[380351639,1755700243795,-1231.62,0.00030958,120]
[380351640,1755700243839,-2904.15,0.00030958,120]
[380351641,1755700243880,-2021.92,0.00030958,120]
[380351642,1755700243920,-400.0,0.00030958,120]
[380351643,1755700243960,-1747.42,0.00030958,120]
[380351644,1755700244003,-1257.16,0.00030958,120]
[380351645,1755700244043,-400.0,0.00030958,120]
[380351646,1755700244084,-1051.37,0.00030958,120]
[380351647,1755700244125,-1521.16,0.00030958,120]
[380351648,1755700244171,-1646.99,0.00030958,120]
[380351649,1755700244217,-492.24,0.00030958,120]
[380351650,1755700244265,-400.0,0.00030958,120]
[380351651,1755700244308,-400.0,0.00030958,120]
[380351652,1755700244352,-1815.85,0.00030958,120]
[380351653,1755700244397,-400.0,0.00030958,120]
[380351654,1755700244442,-400.0,0.00030958,120]
[380351655,1755700244488,-1360.39,0.00030958,120]
[380351656,1755700244535,-2141.63,0.00030958,120]
[380351657,1755700244583,-400.0,0.00030958,120]
[380351658,1755700244636,-400.0,0.00030958,120]
[380351659,1755700244690,-1458.12,0.00030958,120]
[380351660,1755700244737,-406.32880953,0.00030958,120]
[380351661,1755700244790,-1049.68,0.00030958,120]
[380351662,1755700244837,-400.0,0.00030958,120]
[380351663,1755700244885,-400.0,0.00030958,120]
[380351664,1755700244933,-400.0,0.00030958,120]
[380351665,1755700244981,-1005.32,0.00030958,120]
[380351666,1755700245039,-3717.05,0.00030958,120]
[380351667,1755700245091,-2150.02,0.00030958,120]
[380351668,1755700245139,-1449.6,0.00030958,120]
[380351669,1755700245188,-400.0,0.00030958,120]
[380351670,1755700245236,-400.0,0.00030958,120]
[380351671,1755700245287,-1175.46,0.00030958,120]
[380351672,1755700245334,-3065.6,0.00030958,120]
[380351673,1755700245382,-400.0,0.00030958,120]
[380351674,1755700245431,-400.0,0.00030958,120]
[380351675,1755700245479,-400.0,0.00030958,120]
[380351678,1755700245529,-1076.71,0.00030958,120]
[380351679,1755700245576,-400.0,0.00030958,120]
[380351680,1755700245622,-574.48,0.00030958,120]
[380351681,1755700245677,-1045.35,0.00030958,120]
[380351682,1755700245741,-690.82,0.00030958,120]
[380351683,1755700245791,-849.92,0.00030958,120]
[380351684,1755700245838,-400.0,0.00030958,120]
[380351685,1755700245884,-2083.85,0.00030958,120]
[380351686,1755700245929,-3969.05,0.00030958,120]
[380351687,1755700245973,-400.0,0.00030958,120]
[380351688,1755700246016,-1954.83,0.00030958,120]
[380351689,1755700246059,-1350.03,0.00030958,120]
[380351692,1755700246105,-400.0,0.00030958,120]
[380351693,1755700246150,-400.0,0.00030958,120]
[380351694,1755700246194,-404.82,0.00030958,120]
[380351695,1755700246244,-400.0,0.00030958,120]
[380351696,1755700246778,-1572.81,0.00030958,120]
[380351697,1755700246821,-2260.72,0.00030958,120]
[380351698,1755700246879,-964.9,0.00030958,120]
[380351699,1755700246924,-1057.72,0.00030958,120]
[380351700,1755700246968,-400.0,0.00030958,120]
[380351701,1755700247011,-1849.28,0.00030958,120]
[380351702,1755700247054,-1287.79,0.00030958,120]
[380351703,1755700247100,-400.0,0.00030958,120]
[380351704,1755700247145,-2146.59,0.00030958,120]
[380351705,1755700247188,-400.0,0.00030958,120]
[380351706,1755700247231,-400.0,0.00030958,120]
[380351707,1755700247279,-1393.92,0.00030958,120]
[380351708,1755700247325,-2312.24,0.00030958,120]
[380351709,1755700247373,-1401.31,0.00030958,120]
[380351710,1755700247422,-1046.53,0.00030958,120]
[380351711,1755700247468,-490.32,0.00030958,120]
[380351712,1755700247513,-1337.1,0.00030958,120]
[380351713,1755700247557,-1109.75,0.00030958,120]
[380351714,1755700247604,-5666.59,0.00030958,120]
[380351715,1755700247649,-400.0,0.00030958,120]
[380351716,1755700247694,-1954.65,0.00030958,120]
[380351717,1755700247740,-4175.16,0.00030958,120]
[380351718,1755700247794,-1192.5,0.00030958,120]
[380351719,1755700247844,-400.0,0.00030958,120]
[380351720,1755700247897,-400.0,0.00030958,120]
[380351721,1755700247942,-777.94,0.00030958,120]
[380351722,1755700247986,-400.0,0.00030958,120]
[380351723,1755700248034,-1090.09,0.00030958,120]
[380351724,1755700248080,-400.0,0.00030958,120]
[380351725,1755700248126,-1888.82,0.00030958,120]
[380351726,1755700248172,-400.0,0.00030958,120]
[380351727,1755700248221,-475.12379592,0.00030958,120]
[380351728,1755700248272,-1651.59,0.00030958,120]
[380351729,1755700248321,-2523.96,0.00030958,120]
[380351730,1755700248369,-1351.77,0.00030958,120]
[380351731,1755700248417,-400.0,0.00030958,120]
[380351732,1755700248461,-651.77,0.00030958,120]
[380351733,1755700248505,-400.0,0.00030958,120]
[380351734,1755700248548,-400.0,0.00030958,120]
[380351735,1755700248593,-1415.48,0.00030958,120]
[380351736,1755700248637,-1141.58,0.00030958,120]
[380351737,1755700248683,-400.0,0.00030958,120]
[380351738,1755700248729,-1063.5,0.00030958,120]
[380351739,1755700248781,-400.0,0.00030958,120]
[380351740,1755700248826,-400.0,0.00030958,120]
[380351741,1755700248871,-1461.68,0.00030958,120]
[380351742,1755700248913,-1185.59,0.00030958,120]
[380351743,1755700248954,-987.19,0.00030958,120]
[380351744,1755700248998,-1509.63,0.00030958,120]
[380351745,1755700249044,-400.0,0.00030958,120]
[380351746,1755700249093,-400.0,0.00030958,120]
[380351747,1755700249142,-1670.68,0.00030958,120]
[380351748,1755700249192,-2318.62,0.00030958,120]
[380351749,1755700249242,-1195.06,0.00030958,120]
[380351750,1755700249293,-400.0,0.00030958,120]
[380351751,1755700249343,-1584.03,0.00030958,120]
[380351752,1755700249390,-400.0,0.00030958,120]
[380351753,1755700249436,-400.0,0.00030958,120]
[380351754,1755700249482,-888.43,0.00030958,120]
[380351755,1755700249527,-400.0,0.00030958,120]
[380351756,1755700249570,-882.98,0.00030958,120]
[380351757,1755700249612,-1716.91,0.00030958,120]
[380351758,1755700249655,-850.08,0.00030958,120]
[380351759,1755700249697,-1059.98,0.00030958,120]
[380351760,1755700249737,-400.0,0.00030958,120]
[380351761,1755700249780,-400.0,0.00030958,120]
[380351762,1755700249822,-400.0,0.00030958,120]
[380351763,1755700249863,-1223.83,0.00030958,120]
[380351764,1755700249903,-1093.8,0.00030958,120]
[380351765,1755700249944,-400.0,0.00030958,120]
[380351766,1755700250199,-1062.6,0.00030958,120]
[380351767,1755700250245,-1380.64,0.00030958,120]
[380351768,1755700250292,-1329.25,0.00030958,120]
[380351769,1755700250336,-400.0,0.00030958,120]
[380351770,1755700250382,-400.0,0.00030958,120]
[380351771,1755700250430,-400.0,0.00030958,120]
[380351772,1755700250601,-1256.94,0.00030958,120]
[380351773,1755700250648,-1319.34,0.00030958,120]
[380351774,1755700250691,-405.04,0.00030958,120]
[380351775,1755700250736,-1366.95,0.00030958,120]
[380351776,1755700250776,-1427.7,0.00030958,120]
[380351777,1755700250817,-1219.11,0.00030958,120]
[380351778,1755700250857,-900.64,0.00030958,120]
[380351779,1755700250895,-550.58,0.00030958,120]
[380351780,1755700250935,-400.0,0.00030958,120]
[380351781,1755700250975,-400.0,0.00030958,120]
[380351782,1755700251016,-400.0,0.00030958,120]
[380351783,1755700251060,-400.0,0.00030958,120]
[380351784,1755700251108,-596.52,0.00030958,120]
[380351785,1755700251154,-1625.15,0.00030958,120]
[380351786,1755700251206,-1235.79,0.00030958,120]
[380351787,1755700251257,-400.0,0.00030958,120]
[380351788,1755700251306,-2036.03,0.00030958,120]
[380351789,1755700251355,-4322.84,0.00030958,120]
[380351790,1755700251399,-1322.22,0.00030958,120]
[380351791,1755700251443,-4566.82,0.00030958,120]
[380351792,1755700251489,-1677.08,0.00030958,120]
[380351793,1755700251539,-1457.3,0.00030958,120]
[380351794,1755700251583,-400.0,0.00030958,120]
[380351795,1755700251624,-774.8,0.00030958,120]
[380351796,1755700251664,-400.0,0.00030958,120]
[380351797,1755700251706,-1147.0,0.00030958,120]
[380351798,1755700251744,-400.0,0.00030958,120]
[380351799,1755700251786,-632.18,0.00030958,120]
[380351800,1755700251827,-400.0,0.00030958,120]
[380351801,1755700251866,-3215.76,0.00030958,120]
[380351802,1755700251905,-965.61,0.00030958,120]
[380351803,1755700251944,-891.52,0.00030958,120]
[380351804,1755700251981,-836.71,0.00030958,120]
[380351805,1755700252025,-4159.08,0.00030958,120]
[380351806,1755700252067,-400.0,0.00030958,120]
[380351807,1755700252109,-1921.66,0.00030958,120]
[380351808,1755700252153,-979.77,0.00030958,120]
[380351809,1755700252195,-725.45,0.00030958,120]
[380351810,1755700252238,-400.0,0.00030958,120]
[380351811,1755700252284,-988.36,0.00030958,120]
[380351812,1755700252326,-400.0,0.00030958,120]
[380351813,1755700252367,-400.0,0.00030958,120]
[380351814,1755700252408,-1048.22,0.00030958,120]
[380351815,1755700252447,-1250.56,0.00030958,120]
[380351816,1755700252486,-400.0,0.00030958,120]
[380351817,1755700252527,-1629.79,0.00030958,120]
[380351818,1755700252566,-400.0,0.00030958,120]
[380351819,1755700252604,-856.89,0.00030958,120]
[380351820,1755700252644,-430.083725,0.00030958,120]
[380351821,1755700252683,-2302.35,0.00030958,120]
[380351822,1755700252722,-587.24,0.00030958,120]
[380351823,1755700252764,-400.0,0.00030958,120]
[380351824,1755700252804,-2205.01,0.00030958,120]
[380351825,1755700252848,-400.0,0.00030958,120]
[380351826,1755700252889,-4746.52,0.00030958,120]
[380351827,1755700252928,-483.51,0.00030958,120]
[380351828,1755700252967,-400.0,0.00030958,90]
[380351829,1755700253007,-400.0,0.00030958,120]
[380351830,1755700253047,-1033.58,0.00030958,120]
[380351831,1755700253090,-1518.06,0.00030958,60]
[380351832,1755700253133,-554.54,0.00030958,120]
[380351833,1755700253179,-400.0,0.00030958,120]
[380351834,1755700253226,-938.32,0.00030958,120]
[380351835,1755700253271,-1148.26,0.00030958,120]
[380351836,1755700253316,-2875.34,0.00030958,120]
[380351837,1755700253360,-400.0,0.00030958,120]
[380351838,1755700253407,-1222.0,0.00030958,120]
[380351839,1755700253455,-1222.92,0.00030958,120]
[380351840,1755700253501,-1453.11,0.00030958,120]
[380351841,1755700253547,-400.0,0.00030958,120]
[380351842,1755700253590,-1189.39,0.00030958,120]
[380351843,1755700253632,-159.896034,0.00030958,120]
[380351844,1755700253673,-400.0,0.00030958,120]
[380351845,1755700253713,-152.641651,0.00030958,120]
[380351846,1755700253757,-400.0,0.00030958,120]
[380351847,1755700253798,-3504.83,0.00030958,120]
[380351848,1755700253840,-400.0,0.00030958,120]
[380351849,1755700253879,-493.6,0.00030958,120]
[380351850,1755700253919,-400.0,0.00030958,120]
[380351851,1755700253960,-400.0,0.00030958,120]
[380351852,1755700254001,-400.0,0.00030958,120]
[380351853,1755700254042,-1746.86,0.00030958,120]
[380351854,1755700254085,-1428.29,0.00030958,120]
[380351855,1755700254129,-400.0,0.00030958,120]
[380351856,1755700254173,-1168.29,0.00030958,120]
[380351857,1755700254220,-285.347596,0.00030958,120]
[380351858,1755700254263,-400.0,0.00030958,120]
[380351859,1755700254308,-400.0,0.00030958,120]
[380351860,1755700254353,-1895.84,0.00030958,120]
[380351861,1755700254399,-400.0,0.00030958,120]
[380351862,1755700254445,-400.0,0.00030958,120]
[380351863,1755700254491,-1235.33,0.00030958,120]
[380351864,1755700254539,-394.45621119,0.00030958,120]
[380351865,1755700254583,-400.0,0.00030958,120]
[380351866,1755700254630,-1374.42,0.00030958,120]
[380351867,1755700254678,-1021.76,0.00030958,120]
[380351868,1755700254724,-400.0,0.00030958,120]
[380351869,1755700254774,-400.0,0.00030958,120]
[380351870,1755700254821,-400.0,0.00030958,120]
[380351871,1755700254866,-1460.31,0.00030958,120]
[380351872,1755700254911,-1172.69,0.00030958,120]
[380351873,1755700254955,-400.0,0.00030958,120]
[380351874,1755700255003,-4644.94,0.00030958,120]
[380351875,1755700255048,-400.0,0.00030958,120]
[380351876,1755700255092,-400.0,0.00030958,120]
[380351877,1755700255137,-504.27,0.00030958,120]
[380351878,1755700255180,-535.5,0.00030958,120]
[380351879,1755700255224,-1186.21,0.00030958,120]
[380351880,1755700255268,-1455.68,0.00030958,120]
[380351881,1755700255312,-400.0,0.00030958,120]
[380351882,1755700255355,-732.83,0.00030958,120]
[380351883,1755700255403,-1357.14,0.00030958,120]
[380351884,1755700255449,-400.0,0.00030958,120]
[380351885,1755700255495,-400.0,0.00030958,120]
[380351886,1755700255544,-1726.21,0.00030958,120]
[380351887,1755700255591,-2102.58,0.00030958,120]
[380351888,1755700255640,-400.0,0.00030958,120]
[380351889,1755700255839,-407.46468741,0.00030958,120]
[380351890,1755700255889,-2579.09,0.00030958,120]
[380351891,1755700255936,-1089.34,0.00030958,120]
[380351892,1755700255979,-1648.88,0.00030958,120]
[380351893,1755700256022,-888.5,0.00030958,120]
[380351894,1755700256065,-400.0,0.00030958,120]
[380351895,1755700256109,-1271.31,0.00030958,120]
[380351896,1755700256152,-454.37,0.00030958,120]
[380351897,1755700256196,-1843.08,0.00030958,120]
[380351898,1755700256243,-2559.38,0.00030958,120]
[380351899,1755700256294,-1459.02,0.00030958,120]
[380351900,1755700256341,-400.0,0.00030958,120]
[380351901,1755700256389,-400.0,0.00030958,120]
[380351902,1755700256437,-2008.0,0.00030958,120]
[380351903,1755700256484,-1258.12,0.00030958,120]
[380351904,1755700256529,-2212.32,0.00030958,120]
[380351905,1755700256574,-1338.65,0.00030958,120]
[380351906,1755700256618,-697.15,0.00030958,120]
[380351907,1755700256664,-400.0,0.00030958,120]
[380351908,1755700256707,-2348.17,0.00030958,120]
[380351909,1755700256747,-400.0,0.00030958,120]
[380351910,1755700256790,-2511.82,0.00030958,120]
[380351911,1755700256832,-7676.64,0.00030958,120]
[380351912,1755700256872,-433.07,0.00030958,120]
[380351913,1755700256913,-400.0,0.00030958,120]
[380351914,1755700256952,-400.0,0.00030958,120]
[380351915,1755700256993,-827.06,0.00030958,120]
[380351916,1755700257038,-400.0,0.00030958,120]
[380351917,1755700257081,-400.0,0.00030958,120]
[380351918,1755700257130,-2048.44,0.00030958,120]
[380351919,1755700257174,-1065.0,0.00030958,120]
[380351920,1755700257217,-2815.28,0.00030958,120]
[380351921,1755700257265,-462.08,0.00030958,120]
[380351922,1755700257310,-400.0,0.00030958,120]
[380351923,1755700257355,-582.77,0.00030958,120]
[380351924,1755700257399,-849.36,0.00030958,120]
[380351925,1755700257442,-400.0,0.00030958,120]
[380351926,1755700257483,-4908.75,0.00030958,120]
[380351927,1755700257524,-400.0,0.00030958,120]
[380351928,1755700257565,-2113.24581639,0.00031,120]
[380351929,1755700257606,-917.0,0.00031,120]
[380351930,1755700257648,-150.0,0.00031088,120]
[380351931,1755700257690,-150.0,0.00031139,120]
[380351932,1755700257732,-150.0,0.00031205,120]
[380351933,1755700257772,-150.0,0.00031216,120]
[380351934,1755700257814,-500.0,0.00031232,60]
[380351935,1755700257859,-554.0,0.00031232,60]
[380351936,1755700257901,-500.0,0.00031232,60]
[380351937,1755700257943,-686.03,0.00031232,120]
[380351938,1755700257983,-981.13,0.00031232,60]
[380351939,1755700258024,-1021.58,0.00031232,120]
[380351940,1755700258064,-1394.51,0.00031232,120]
[380351941,1755700258110,-1472.86,0.00031232,120]
[380351942,1755700258153,-2200.62,0.00031232,120]
[380351943,1755700258196,-400.0,0.00031232,120]
[380351944,1755700258240,-400.0,0.00031232,120]
[380351945,1755700258284,-400.0,0.00031232,120]
[380351946,1755700258326,-454.8,0.00031232,120]
[380351947,1755700258368,-704.4,0.00031232,120]
[380351948,1755700258409,-1508.72,0.00031232,120]
[380351949,1755700258450,-1684.25,0.00031232,120]
[380351950,1755700258493,-807.75,0.00031232,120]
[380351951,1755700258536,-400.0,0.00031232,120]
[380351952,1755700258581,-436.83,0.00031232,120]
[380351953,1755700258627,-706.35,0.00031232,120]
[380351954,1755700258672,-400.0,0.00031232,120]
[380351955,1755700258716,-400.0,0.00031232,120]
[380351956,1755700258759,-477.33,0.00031232,120]
[380351957,1755700258801,-654.03,0.00031232,120]
[380351958,1755700258843,-1740.22,0.00031232,120]
[380351959,1755700258886,-400.0,0.00031232,120]
[380351960,1755700258928,-2506.94,0.00031232,120]
[380351961,1755700258969,-455.02,0.00031232,120]
[380351962,1755700259013,-495.38,0.00031232,120]
[380351963,1755700259057,-400.0,0.00031232,120]
[380351964,1755700259102,-480.05,0.00031232,120]
[380351965,1755700259148,-1387.18,0.00031232,120]
[380351966,1755700259191,-400.0,0.00031232,120]
[380351967,1755700259235,-1628.02,0.00031232,120]
[380351968,1755700259277,-400.0,0.00031232,120]
[380351969,1755700259320,-1247.37,0.00031232,120]
[380351970,1755700259366,-400.0,0.00031232,120]
[380351971,1755700259410,-400.0,0.00031232,120]
[380351972,1755700259458,-1058.71,0.00031232,120]
[380351973,1755700259503,-604.21,0.00031232,120]
[380351974,1755700259547,-400.0,0.00031232,120]
[380351975,1755700259589,-1501.66,0.00031232,120]
[380351976,1755700259631,-400.0,0.00031232,120]
[380351977,1755700259673,-400.0,0.00031232,120]
[380351978,1755700259716,-400.0,0.00031232,120]
[380351979,1755700259760,-970.36,0.00031232,120]
[380351980,1755700259804,-400.0,0.00031232,120]
[380351981,1755700259851,-400.0,0.00031232,120]
[380351982,1755700259895,-400.0,0.00031232,120]
[380351983,1755700260290,-400.0,0.00031232,120]
[380351984,1755700260341,-1076.85,0.00031232,120]
[380351985,1755700260394,-1405.17,0.00031232,120]
[380351986,1755700260445,-1026.4,0.00031232,120]
[380351987,1755700260494,-574.78,0.00031232,120]
[380351988,1755700260549,-400.0,0.00031232,120]
[380351989,1755700260599,-1522.73,0.00031232,120]
[380351990,1755700260646,-665.34,0.00031232,120]
[380351991,1755700260694,-445.92,0.00031232,120]
[380351992,1755700260739,-400.0,0.00031232,120]
[380351993,1755700260788,-1308.29,0.00031232,120]
[380351994,1755700260834,-458.47,0.00031232,120]
[380351995,1755700260878,-400.0,0.00031232,120]
[380351996,1755700260920,-752.7,0.00031232,120]
[380351997,1755700260961,-400.0,0.00031232,120]
[380351998,1755700261003,-400.0,0.00031232,120]
[380351999,1755700261051,-575.76,0.00031232,120]
[380352000,1755700261095,-1514.99,0.00031232,120]
[380352001,1755700261139,-400.0,0.00031232,120]
[380352002,1755700261183,-638.38,0.00031232,120]
[380352003,1755700261226,-1224.66,0.00031232,120]
[380352004,1755700261272,-400.0,0.00031232,120]
[380352005,1755700261318,-400.0,0.00031232,120]
[380352006,1755700261366,-572.95,0.00031232,120]
[380352007,1755700261412,-400.0,0.00031232,120]
[380352008,1755700261458,-400.0,0.00031232,120]
[380352009,1755700261504,-801.51,0.00031232,120]
[380352010,1755700261550,-400.0,0.00031232,120]
[380352011,1755700261594,-645.79,0.00031232,120]
[380352012,1755700261637,-651.33,0.00031232,120]
[380352013,1755700261680,-400.0,0.00031232,120]
[380352014,1755700261722,-418.53,0.00031232,120]
[380352015,1755700261766,-1238.53,0.00031232,120]
[380352016,1755700261808,-401.22,0.00031232,120]
[380352017,1755700261853,-1075.44,0.00031232,120]
[380352018,1755700261897,-400.0,0.00031232,120]
[380352019,1755700261940,-400.0,0.00031232,120]
[380352020,1755700261983,-400.0,0.00031232,120]
[380352021,1755700262027,-517.66,0.00031232,120]
[380352022,1755700262068,-1026.94,0.00031232,120]
[380352023,1755700262111,-949.71,0.00031232,120]
[380352024,1755700262154,-877.05,0.00031232,120]
[380352025,1755700262197,-520.99,0.00031232,120]
[380352026,1755700262242,-734.16,0.00031232,120]
[380352027,1755700262288,-1284.16,0.00031232,120]
[380352028,1755700262333,-400.0,0.00031232,120]
[380352029,1755700262377,-400.0,0.00031232,120]
[380352030,1755700262424,-400.0,0.00031232,120]
[380352031,1755700262468,-522.69,0.00031232,120]
[380352032,1755700262515,-2382.06,0.00031232,120]
[380352033,1755700262557,-873.41,0.00031232,120]
[380352034,1755700262600,-400.0,0.00031232,120]
[380352035,1755700262643,-400.0,0.00031232,120]
[380352036,1755700262686,-400.0,0.00031232,120]
[380352037,1755700262729,-1947.95,0.00031232,120]
[380352038,1755700262772,-569.22,0.00031232,120]
[380352039,1755700262814,-400.0,0.00031232,120]
[380352040,1755700262861,-1388.88,0.00031232,120]
[380352041,1755700262902,-1614.75,0.00031232,120]
[380352042,1755700262945,-1067.56,0.00031232,120]
[380352043,1755700262987,-400.0,0.00031232,120]
[380352044,1755700263031,-807.29,0.00031232,120]
[380352045,1755700263081,-1292.46,0.00031232,120]
[380352046,1755700263142,-400.0,0.00031232,120]
[380352047,1755700263196,-576.73,0.00031232,120]
[380352048,1755700263253,-400.0,0.00031232,120]
[380352049,1755700263317,-1277.49,0.00031232,120]